{"text_format":"1","workbook":"xlsx","n_sheets":13,"sheets":["Титульний","1","2-4","5-7","8","9","10-11","12-14","15-16","17-19","dod 1-2","dod 3-4","Dov"],"not_rendered":{"charts":0,"images":0,"macros":1,"external_links":3,"defined_names":43,"comments":0,"pivot_tables":0},"unopened":[{"sheet":"Dov","index":12,"reason":"not_a_worksheet"}],"bounds":{"document_bytes":16777216,"sheet_cells":100000,"rows_first":2000,"rows_last":500,"rows_between":2000,"halvings":0,"cell_chars":16384,"cell_head_chars":4096},"cells_cut":0,"cells_raw":0,"read":"whole","date_system":"1900"}

{"sheet":"Титульний","index":0,"n_rows":25,"n_cols":6,"rows_kept":25,"cut":false,"hidden":false,"merged":[[18,0,18,3],[24,0,24,6],[9,5,9,6],[10,5,10,6],[11,0,11,3],[9,0,9,3],[10,0,10,3],[11,5,11,6],[12,0,12,3],[13,0,13,3],[17,0,17,3],[17,5,17,6],[16,0,16,3],[14,0,14,3],[15,0,15,3],[12,5,14,6],[15,5,15,6],[7,0,7,6],[1,0,1,6],[3,0,3,6],[4,0,4,6],[6,0,6,6]]}
[]
["ЗВІТНІСТЬ"]
[]
["ЗВІТ"]
["ПРО РОБОТУ ПРОКУРОРА"]
[]
["за 12 місяців 2015 року"]
[]
[]
["Подають: ",null,null,null,"Терміни\nподання","Форма № П"]
["міські, районні, міжрайонні прокурори – прокурорам Автономної Республіки Крим, областей, міст Києва і Севастополя",null,null,null,"до 2 числа після звітного періоду","\"квартальна\""]
["прокурори районів у містах з районним поділом – прокурору міста",null,null,null,"до 2 числа після звітного періоду","ЗАТВЕРДЖЕНО"]
["прокурори міст з районним поділом – прокурору обласного рівня",null,null,null,"до 3 числа після звітного періоду","Наказ Генерального прокурора України \nвід 28 листопада 2012 року № 121 \nзі змінами та доповненнями:\nвід 25 квітня 2013 року №55\nвід 11 лютого 2014 року №18\nвід 26 листопада 2014 року №132"]
["військові прокурори гарнізонів - військовому прокурору регіону",null,null,null,"до 2 числа після звітного періоду"]
["прокурори Автономної Республіки Крим, областей, міст Києва і Севастополя – управлінню організації ведення Єдиного реєстру досудових розслідувань та статистичної інформації Генеральної прокуратури України",null,null,null,"до 5 числа після звітного періоду"]
["військові прокурори регіонів - Головній військовій прокуратурі",null,null,null,"до 5 числа після звітного періоду","за погодженням з Держстатом"]
["Головна військова прокуратура – управлінню організації ведення Єдиного реєстру досудових розслідувань та статистичної інформації Генеральної прокуратури України",null,null,null,"до 6 числа після звітного періоду"]
["начальники структурних підрозділів Генеральної прокуратури України – управлінню організації ведення Єдиного реєстру досудових розслідувань та статистичної інформації Генеральної прокуратури України",null,null,null,"до 3 числа після звітного періоду"]
["Генеральна прокуратура України – до Держстату",null,null,null,"на 35 день після звітного періоду (півріччя, рік)"]
[]
["Респондент: "]
["Найменування:","Прокуратура області"]
["Місцезнаходження:"]
[]
["(поштовий індекс, область, район, населений пункт, вулиця/провулок, площа тошо, № будинку)"]

{"sheet":"1","index":1,"n_rows":26,"n_cols":31,"rows_kept":26,"cut":false,"hidden":false,"merged":[[1,19,1,27],[1,28,3,28],[1,29,3,29],[1,0,3,2],[1,3,3,3],[1,4,1,5],[1,6,2,7],[1,8,3,8],[1,30,3,30],[2,4,3,4],[2,5,3,5],[2,9,2,10],[2,11,3,11],[2,19,2,20],[2,21,2,22],[2,23,2,24],[2,25,2,26],[2,27,3,27],[1,9,1,11],[1,12,3,12],[1,13,3,15],[1,16,3,16],[1,17,3,17],[1,18,3,18],[4,13,4,15],[5,0,5,2],[5,13,5,15],[6,0,8,0],[6,1,6,2],[6,13,8,13],[6,14,6,15],[7,1,7,2],[7,14,7,15],[8,1,8,2],[8,14,8,15],[4,0,4,2],[9,13,9,15],[10,0,10,2],[10,13,10,15],[11,0,13,0],[11,1,11,2],[11,13,13,13],[11,14,11,15],[12,1,12,2],[12,14,12,15],[13,1,13,2],[13,14,13,15],[9,0,9,2],[25,0,25,2],[25,13,25,15],[21,14,21,15],[23,1,23,2],[23,14,23,15],[14,13,24,13],[14,14,14,15],[15,1,17,1],[15,14,17,14],[14,0,24,0],[14,1,14,2],[18,1,18,2],[18,14,18,15],[19,1,19,2],[19,14,19,15],[21,1,21,2]]}
["РОЗДІЛ 1. Представництво інтересів громадян та держави в судах",null,null,null,null,null,null,null,null,null,null,null,null,"РОЗДІЛ 1. Представництво інтересів громадян та держави в судах"]
["Таблиця 1",null,null,"рядок","Досудове врегулювання спорів",null,"Кількість справ, що перебувають у провадженні суду",null,"Сума у справах, за якими судом відкрито провадження з початку звітного року (тис.грн.)","Розгляд справи судом",null,null,"Сума за рішеннями, які передано на примусове виконання (тис.грн.)","Таблиця 1",null,null,"рядок","Кількість справ у яких забезпечено участь прокурора","Сума за рішеннями прийнятими на користь сторони, в інтересах якої прокурор вступив у справу (тис.грн.)","Ініціювання перегляду судових рішень",null,null,null,null,null,null,null,null,"Кількість громадян права яких поновлено у судовому порядку","Площа повернутих земель та незаконне надання яких попереджено","Розпочато кримінальних проваджень"]
[null,null,null,null,"Кількість направлених звернень","Кількість позовів (заяв, скарг, подань), внесених у разі неврегулювання спору",null,null,null,"Задоволено позовів, заяв, скарг, подань",null,"Сума, яку добровільно відшкодовано за закритими справами (тис.грн.)",null,null,null,null,null,null,null,"Апеляційні скарги",null,"Касаційні скарги",null,"Заяви до Верховного Суду України",null,"Заяви про перегляд судових рішень за нововиявленими обставинами",null,"Сума за рішеннями, скасованими за скаргами, заявами прокурора (тис.грн.)"]
[null,null,null,null,null,null,"Усього","Сума, на яку заявлено позови, заяви у цих справах (тис.грн.)",null,"Усього","Сума по них (тис.грн.)",null,null,null,null,null,null,null,null,"Розглянуто","Задоволено ","Розглянуто","Задоволено ","Розглянуто","Задоволено ","Розглянуто","Задоволено "]
["а",null,null,"б",1,2,3,4,5,6,7,8,9,"а",null,null,"б",10,11,12,13,14,15,16,17,18,19,20,21,22,23]
["УСЬОГО",null,null,1,null,null,39,49061,358826,662,230681,10891,28787,"УСЬОГО",null,null,1,891,1437,58,33,11,4,null,null,null,null,917,154,10822,87]
["з них:","у цивільному судочинстві",null,2,"x","x",19,1034,86156,331,55337,2379,11897,"з них:","у цивільному судочинстві",null,2,584,222,19,14,7,2,null,null,null,null,527,123,893,"x"]
[null,"у господарському судочистві",null,3,"x","x",8,47969,135790,115,56731,6657,11680,null,"у господарському судочистві",null,3,169,1090,18,7,4,2,null,null,null,null,378,2,1148,"x"]
[null,"в адміністративному судочинстві",null,4,"x","x",1,8,128245,147,116856,1838,5026,null,"в адміністративному судочинстві",null,4,138,125,21,12,null,null,null,null,null,null,12,29,8781,"x"]
["В інтересах громадян",null,null,5,null,null,4,8,14419,154,12918,1305,1181,"В інтересах громадян",null,null,5,326,14,11,8,1,null,null,null,null,null,303,154,58,7]
["На захист інтересів держави",null,null,6,null,null,24,49003,335722,435,215956,9569,27296,"На захист інтересів держави",null,null,6,538,1423,47,25,10,4,null,null,null,null,614,null,10760,78]
["з них: ","У бюджетній сфері",null,7,null,null,null,null,27371,58,2638,212,1683,"з них: ","У бюджетній сфері",null,7,47,16,4,2,null,null,null,null,null,null,null,null,null,22]
[null,"З питань державної та комунальної власності",null,8,null,null,4,102,37728,76,17506,467,2634,null,"З питань державної та комунальної власності",null,8,126,94,11,3,3,2,null,null,null,null,null,null,44,8]
[null,"У сфері охорони навколишнього природного середовища",null,9,null,null,3,390,1480,34,1272,82,745,null,"У сфері охорони навколишнього природного середовища",null,9,35,null,2,2,1,null,null,null,null,null,369,null,null,21]
["з рядка 1:","Про відшкодування шкоди, заподіяної кримінальними правопорушеннями",null,10,null,null,13,57,8946,90,1968,21,363,"з рядка 1:","Про відшкодування шкоди, заподіяної кримінальними правопорушеннями",null,10,27,76]
[null,"у т.ч.","у кримінальному судочинстві",11,"x","x",11,50,8635,69,1757,17,184,null,"у т.ч.","у кримінальному судочинстві",11,"x","x"]
[null,null,"з ознаками корупції",12,null,null,1,11,16,null,null,null,null,null,null,"з ознаками корупції",12,1]
[null,null,"що вчинені неповнолітніми",13,null,null,null,null,null,null,null,null,null,null,null,"що вчинені неповнолітніми",13]
[null,"З питань виконання судових рішень",null,14,null,null,null,null,50,4,50,null,126,null,"З питань виконання судових рішень",null,14,27,null,null,null,null,null,null,null,null,null,null,null,4,2]
[null,"З питань захисту інтересів дітей",null,15,null,null,2,13,708,59,590,61,496,null,"З питань захисту інтересів дітей",null,15,235,null,5,4,null,null,null,null,null,null,33,50,null,5]
[null,"у т.ч.:","щодо інтересів держави у сфері охорони дитинства",16,null,null,1,5,145,10,76,61,219,null,"у т.ч.:","щодо інтересів держави у сфері охорони дитинства",16,12,null,2,1,null,null,null,null,null,null,9,null,null,3]
[null,"У воєнній сфері",null,17,null,null,null,null,null,null,null,null,null,null,"У воєнній сфері",null,17]
[null,"у т.ч.:","у сфері оборонно промислового комплексу",18,null,null,null,null,null,null,null,null,null,null,"у т.ч.:","у сфері оборонно промислового комплексу",18]
[null,"З питань земельних відносин",null,19,null,null,14,1671,225006,197,189942,6738,10064,null,"З питань земельних відносин",null,19,217,null,18,12,1,null,null,null,null,null,212,6,10822,16]
[null,"у т.ч.:","в інтересах держави",20,null,null,13,1671,213446,181,178513,6696,10019,null,"у т.ч.:","в інтересах держави",20,206,null,17,11,null,null,null,null,null,null,212,null,10764,14]
["Контрольний рядок",null,null,21,{"$f":"SUM(E6:E25)","v":0},{"$f":"SUM(F6:F25)","v":0},157,151053,1582689,2622,1082791,46994,112400,"Контрольний рядок",null,null,21,{"$f":"SUM(R6:R25)","v":3579},{"$f":"SUM(S6:S25)","v":4497},233,134,38,14,0,0,0,0,3586,518,54096,263]

{"sheet":"2-4","index":2,"n_rows":29,"n_cols":27,"rows_kept":29,"cut":false,"hidden":false,"merged":[[18,0,18,3],[16,1,16,3],[17,2,17,3],[9,2,9,3],[9,1,14,1],[10,2,11,2],[13,2,14,2],[12,2,12,3],[1,22,1,26],[1,20,3,20],[2,25,3,25],[2,26,3,26],[1,21,3,21],[2,22,3,22],[2,23,3,23],[2,24,3,24],[5,0,5,3],[23,5,23,6],[1,17,1,19],[4,17,4,19],[5,18,5,19],[4,0,4,3],[2,17,3,19],[5,17,9,17],[9,18,9,19],[8,18,8,19],[6,18,7,18],[6,0,6,3],[7,1,7,3],[8,1,8,3],[18,18,18,19],[21,4,22,4],[0,0,0,15],[1,6,2,7],[1,8,3,8],[1,9,3,9],[2,0,3,3],[2,13,3,13],[2,15,3,15],[1,12,3,12],[1,11,3,11],[1,14,3,14],[1,4,3,4],[1,10,3,10],[1,5,3,5],[28,0,28,3],[28,5,28,6],[25,0,27,0],[26,2,26,3],[25,5,25,6],[27,1,27,3],[27,5,27,6],[25,1,25,3],[26,5,26,6],[28,7,28,8],[27,7,27,8],[26,7,26,8],[25,7,25,8],[15,17,19,17],[23,7,23,8],[20,17,20,19],[22,7,22,8],[24,7,24,8],[21,5,21,8],[24,0,24,3],[24,5,24,6],[23,0,23,3],[13,18,13,19],[15,18,15,19],[16,18,17,18],[10,17,14,17],[11,18,12,18],[10,18,10,19],[14,18,14,19],[19,18,19,19],[7,0,17,0],[15,1,15,3],[19,0,19,3],[22,5,22,6],[21,0,22,3]]}
["РОЗДІЛ 2. Нагляд за додержанням законів органами, які проводять оперативно-розшукову діяльність та досудове розслідування "]
["Таблиця 2",null,null,null,"рядок","Виявлено та внесено до Реєстру відомості про вчинені кримінальні правопорушення, раніше не обліковані ","з числа укритих від обліку: ",null,"Скасовано постанов про закриття \nкримінальних проваджень","у т.ч. направлено до суду","Винесено прокурором постанов про відновлення досудового розслідування ","Дано письмових вказівок","Прийнято прокурором участь у розгляді слідчим суддею скарг на рішення, дії чи бездіяльність слідчого або прокурора ","у т.ч. ","Із задоволеннням скарги (з графи 8)","у т.ч. ",null,"Таблиця 4",null,null,"рядок","УСЬОГО","За фактами порушень, допущених при:"]
["Нагляд за законністю проведення досудового розслідування ",null,null,null,null,null,null,null,null,null,null,null,null," щодо невнесення до Реєстру відомостей про крим. правопорушення ",null," щодо невнесення до Реєстру відомостей про крим. правопорушення ",null,"Нагляд за додержанням законності у діяльності правоохоронних органів",null,null,null,null,"реєстрації заяв і повідомлень про вчинені кримінальні правопорушення ","здійсненні досудового розслідування злочинів","здійсненні досудового розслідування кримінальних проступків","застосуванні незаконних методів \nдосудового розслідування ","у т.ч. у провадженнях щодо неповнолітніх ( з гр.1)"]
[null,null,null,null,null,null,"надіслано до суду ","закрито за п.п.1, 2, 3 \nч.1 ст. 284 КПК"]
["а",null,null,null,"б",1,2,3,4,5,6,7,8,9,10,11,null,"а",null,null,"б",1,2,3,4,5,6]
["УСЬОГО",null,null,null,1,62,3,26,1024,33,8,4107,153,42,44,10,null,"Розглянуто документів прокурора з вжиттям заходів до усунення порушень законів у діяльності органів","внутрішніх справ",null,1,205,30,136,null,null,20]
["Прокурорів (з рядка 1)",null,null,null,2,"x","x","x","x","x","x","x",18,12,7,4,null,null,"з них:","спец. підрозділів і ССВ",2]
["з них за кримінальними провадженнями (з рядка 1):","слідчих прокуратури",null,null,3,null,null,null,15,null,null,111,47,19,8,1,null,null,null,"на транспорті",3,9,1,8,null,null,1]
[null,"слідчих МВС",null,null,4,62,3,26,999,33,6,3898,81,11,28,5,null,null,"фіскальної служби",null,4,3,null,3]
[null,"з них:","про злочини",null,5,62,3,26,999,33,6,3898,81,11,28,5,null,null,"служби безпеки",null,5,1,null,1]
[null,null,"у т.ч.:","спец. відділів",6,null,null,null,null,null,null,null,null,null,null,null,null,"Притягнуто до дисциплінарної відповідальності працівників органів за документами прокурора","внутрішніх справ",null,6,210,48,125,null,null,15]
[null,null,null,"на транспорті",7,11,null,11,17,null,null,142,null,null,null,null,null,null,"з них:","спец. підрозділів і ССВ",7]
[null,null,"про кримінальні проступки",null,8,null,null,null,null,null,null,null,null,null,null,null,null,null,null,"на транспорті",8,7,1,6]
[null,null,"у т.ч.:","спец. відділів",9,null,null,null,null,null,null,null,null,null,null,null,null,null,"фіскальної служби",null,9,11,null,11]
[null,null,null,"на транспорті",10,null,null,null,null,null,null,null,null,null,null,null,null,null,"служби безпеки",null,10,2,null,2]
[null,"слідчих ДФС",null,null,11,null,null,null,9,null,2,50,7,null,1,null,null,"Повідомлено про підозру за направленими до суду кримінальними провадженнями працівникам органів ","внутрішніх справ",null,11,10]
[null,"слідчих служби безпеки",null,null,12,null,null,null,1,null,null,48,null,null,null,null,null,null,"з них:","спец. підрозділів і ССВ",12]
[null,"у т.ч.:","спец. підрозділів",null,13,null,null,null,null,null,null,null,null,null,null,null,null,null,null,"на транспорті",13]
["у т.ч. у провадженнях щодо неповнолітніх (з рядка 1)",null,null,null,14,null,null,null,5,2,null,113,null,null,null,null,null,null,"фіскальної служби",null,14]
["Контрольний рядок",null,null,null,15,{"$f":"SUM(F6:F19)","v":197},9,89,3069,101,22,12367,387,95,116,25,null,null,"служби безпеки",null,15]
[null,null,null,null,null,null,null,null,null,null,null,null,null,null,null,null,null,"Контрольний рядок",null,null,16,{"$f":"SUM(V6:V20)","v":458},80,292,0,0,36]
["Таблиця 3\nРозглянуті апеляційні скарги прокурора на судові рішення з питань досудового розслідування ",null,null,null,"рядок","Апеляційні скарги "]
[null,null,null,null,null,"задоволено",null,"відхилено"]
["а",null,null,null,"б",1,null,2]
["Про скасування ухвал слідчого судді",null,null,null,1,12,null,6]
["з них:","про відмову в наданні дозволу на затримання ",null,null,2]
[null,"у т.ч:","у провадженнях щодо неповнолітніх",null,3]
[null,"про відмову у відстороненні від посади",null,null,4]
["Контрольний рядок",null,null,null,5,{"$f":"SUM(F25:F28)","v":12},null,{"$f":"SUM(H25:H28)","v":6}]

{"sheet":"5-7","index":3,"n_rows":45,"n_cols":12,"rows_kept":45,"cut":false,"hidden":false,"merged":[[1,11,3,11],[2,6,3,6],[2,7,3,7],[44,0,44,3],[14,1,14,3],[15,1,15,3],[12,0,15,0],[13,1,13,3],[12,1,12,3],[32,0,32,3],[28,0,28,3],[29,0,29,3],[30,0,31,0],[30,1,30,3],[31,1,31,3],[17,0,17,3],[21,2,21,3],[42,0,42,3],[43,0,43,3],[5,0,5,3],[6,0,9,0],[9,1,9,3],[6,1,6,3],[1,6,1,10],[2,10,3,10],[2,9,3,9],[2,8,3,8],[8,1,8,3],[7,1,7,3],[1,5,3,5],[4,0,4,3],[1,0,1,3],[3,0,3,3],[1,4,3,4],[10,0,10,3],[11,0,11,3],[16,0,16,3],[22,2,22,3],[23,2,23,3],[18,0,23,0],[18,1,18,3],[19,1,19,3],[20,1,23,1],[20,2,20,3],[34,0,41,0],[34,1,35,1],[34,2,34,3],[24,0,24,3],[25,0,25,3],[26,0,27,0],[26,1,26,3],[27,1,27,3],[36,1,41,1],[36,2,36,3],[37,2,40,2],[41,2,41,3],[33,0,33,3]]}
[]
["Таблиця 5",null,null,null,"рядок","Усього","у тому числі у кримінальних провадженнях органів:",null,null,null,null,"щодо неповнолітніх \n(з графи 1)"]
[null,null,null,null,null,null,"прокуратури","МВС","з них: на транспорті","служби безпеки ","ДФС"]
["Клопотання до суду про застосування запобіжних заходів"]
["а",null,null,null,"б",1,2,3,4,5,6,7]
["Подано до суду клопотань (усього)",null,null,null,1,774,29,734,1,10,1,19]
["з них: ","про особисте зобов'язання",null,null,2,262,6,248,1,7,1,6]
[null,"про заставу",null,null,3,2,2]
[null,"про домашній арешт ",null,null,4,95,1,94,null,null,null,5]
[null,"про тримання під вартою",null,null,5,415,20,392,null,3,null,8]
["Подано клопотань про поміщення до психіатричного закладу",null,null,null,6,2,null,2]
["Відкликано прокурором клопотань",null,null,null,7]
["з них: ","про особисте зобов'язання",null,null,8]
[null,"про заставу",null,null,9]
[null,"про домашній арешт ",null,null,10]
[null,"про тримання під вартою",null,null,11]
["Відкликано клопотань про поміщення до психіатричного закладу",null,null,null,12]
["Відмовлено слідчим суддею у задоволенні клопотань (з рядків 4,5)",null,null,null,13,71,1,70,null,null,null,2]
["з них: ","про домашній арешт ",null,null,14,8,null,8]
[null,"про тримання під вартою",null,null,15,63,1,62,null,null,null,2]
[null,"у т.ч. \nз обранням \n(з рядка 15):","особистого зобов’язання",null,16,13,null,13]
[null,null,"особистої поруки",null,17]
[null,null,"застави",null,18,1,1]
[null,null,"домашнього арешту",null,19,43,null,43,null,null,null,2]
["Відмовлено у задоволенні клопотань про поміщення до психіатричного закладу (з рядка 6)",null,null,null,20]
["Подано апеляційних скарг на ухвали слідчого судді про відмову в застосуванні запобіжного заходу ",null,null,null,21,10,null,10]
["з них: ","про домашній арешт ",null,null,22]
[null,"про тримання під вартою",null,null,23,10,null,10]
["Подано апеляційних скарг на ухвали слідчого судді про відмову у поміщенні до психіатричного закладу",null,null,null,24]
["Задоволено (з рядка 21)",null,null,null,25,5,null,5]
["з них: ","про домашній арешт ",null,null,26]
[null,"про тримання під вартою",null,null,27,5,null,5]
["Задоволено апеляційних скарг на ухвали про відмову у поміщенні до психіатричного закладу (з рядка 24)",null,null,null,28]
["Звільнено з-під варти осіб на стадії досудового розслідування та судового провадження (за закінченими досудовим розслідуванням або розглянутими судами кримінальними провадженнями)",null,null,null,29]
["з них осіб за кримінал. провадженнями (з рядка 29):","закритими за результатами досудового розслідування","За відсутністю події або складу кримінального правопорушення чи за недоведеністю винуватості підозрюваного ",null,30]
[null,null,"з них:","за відсутністю складу кримінального правопорушення у зв’язку із зміною законодавства (декриміналізацією)",31]
[null,"розглянутими судами","За виправданням обвинуваченого або закриттям кримінал. провадження судом",null,32]
[null,null,"з них:","за невстановленням події або складу кримінал. правопорушення чи за недоведеністю винуватості особи у суді ",33]
[null,null,null,"при відмові прокурора від підтримання обвинувачення",34]
[null,null,null,"за закриттям провадження з інших підстав ",35]
[null,null,null,"за відсутністю складу кримінального правопорушення у зв’язку із зміною законодавства (декриміналізацією)",36]
[null,null,"Звільнено у зв’язку із засудженням до покарання, не пов’язаного з позбавленням волі",null,37]
["Звільнено осіб з-під варти у зв’язку із скасуванням апеляційним судом ухвали суду про тримання під вартою",null,null,null,38,2,null,2]
["Звільнено осіб з-під варти на стадії досудового розслідування у зв'язку з внесенням застави (ч. 3 ст. 183 КПК України)",null,null,null,39,42,13,29]
["Контрольний рядок",null,null,null,40,{"$f":"SUM(F6:F44)","v":1823},74,1727,2,20,2,44]

{"sheet":"8","index":4,"n_rows":50,"n_cols":7,"rows_kept":50,"cut":false,"hidden":false,"merged":[[0,0,0,6],[4,0,18,0],[5,1,8,1],[7,2,7,3],[9,1,9,3],[10,1,11,1],[1,0,1,3],[18,1,18,3],[15,1,15,3],[14,1,14,3],[16,1,16,3],[17,1,17,3],[13,1,13,3],[2,0,2,3],[3,0,3,3],[4,1,4,3],[5,2,5,3],[10,2,10,3],[6,2,6,3],[12,1,12,3],[35,1,35,3],[28,0,28,3],[30,0,30,3],[23,1,23,3],[24,1,24,3],[26,2,26,3],[27,1,27,3],[19,0,27,0],[25,1,25,3],[19,1,19,3],[22,1,22,3],[29,1,29,3],[36,0,36,3],[37,0,38,0],[38,1,38,3],[33,1,33,3],[31,1,31,3],[37,1,37,3],[34,0,34,3],[21,1,21,3],[20,1,20,3],[32,1,32,3],[32,0,33,0],[49,0,49,3],[39,0,39,3],[40,0,48,0],[40,1,40,3],[41,1,42,1],[41,2,41,3],[43,1,43,3],[44,1,45,1],[44,2,44,3],[46,1,46,3],[47,1,48,1],[47,2,47,3]]}
["РОЗДІЛ 3. Участь прокурорів у судовому розгляді кримінальних проваджень та перегляді судових рішень"]
["Таблиця 8\nУчасть прокурорів у судовому розгляді кримінальних проваджень судами всіх інстанцій",null,null,null,"рядок","Усього","щодо неповнолітніх (з графи 1)"]
["а",null,null,null,"б",1,2]
["Участь у розгляді кримінальних проваджень судами першої інстанції (усього)",null,null,null,1,4403,131]
["у т.ч.:","у підготовчому судовому засіданні",null,null,2,556,17]
[null," з них: ","з поверненням провадження прокурору при відмові у затвердженні угоди",null,3,2]
[null,null,"у розгляді судом клопотань про направлення проваджень для закриття ",null,4,63,1]
[null,null,"з ухваленням вироку на підставі угоди",null,5,224,6]
[null,null,"у т.ч.:","про визнання винуватості",6,94,1]
[null,"у судовому розгляді проваджень з ухваленням вироку ",null,null,7,2361,99]
[null,"з них:","з ухваленням вироку на підставі угоди",null,8,20,1]
[null,null,"у т.ч.:","про визнання винуватості",9,9]
[null,"у розгляді судом клопотань прокурора про скасування вироку, яким затверджена угода\n(ст.476 КПК України)",null,null,10]
[null,"у провадженнях про застосування примусових заходів медичного характеру",null,null,11,25]
[null,"у провадженнях про продовження, зміну, припинення примусових заходів медичного характеру, відновлення кримінального провадження",null,null,12,90]
[null,"у розгляді судом клопотань про застосування примусових заходів виховного характеру",null,null,13,10,9]
[null,"у провадженні у формі приватного обвинувачення із закриттям за заявою потерпілого у зв’язку з відмовою від обвинувачення (п.7 ч.1 ст.284 КПК України)",null,null,14,61,2]
[null,"у розгляді судом питань, пов’язаних з виконанням вироків",null,null,15,1205,2]
[null,"у розгляді судом питань, пов’язаних із застосуванням амністії",null,null,16,38]
["з них (з рядка 7):","розглянуто за спрощеною процедурою (ч.3 ст.349 КПК України)",null,null,17,1556]
[null,"про кримінальні проступки",null,null,18]
[null,"у провадженнях про вчинення кримінальних правопорушень у складі ОГ і ЗО",null,null,19,1]
[null,"зі зміною обвинувачення прокурором у суді",null,null,20,35,3]
[null,"згідно з позицією потерпілого, який не погодився зі зміною обвинувачення прокурором",null,null,21]
[null,"з висуненням прокурором додаткового обвинувачення в суді",null,null,22]
[null,"з ухваленням виправдувального вироку (в особах)",null,null,23,21,2]
[null,"у т.ч.:","згідно з позицією потерпілого при відмові прокурора від обвинувачення ",null,24]
[null,"з ухваленням обвинувального вироку, де прокурор відмовився від обвинувачення (в особах)",null,null,25]
["Участь у кримінальних провадженнях, закритих за реабілітуючими підставами судами усіх інстанцій(в особах)",null,null,null,26,4]
["з них:","згідно з позицією прокурора",null,null,27,1]
["Участь у перегляді судових рішень судом апеляційної інстанції",null,null,null,28,609,36]
["з них:","з ухваленням нового вироку",null,null,29,52,3]
["з рядка 28","вироків, ухвалених на підставі угоди про примирення",null,null,30,2]
[null,"вироків, ухвалених на підставі угоди про визнання винуватості",null,null,31,2,1]
["Участь у перегляді судових рішень судом касаційної інстанції ",null,null,null,32]
["у т.ч.: ","вироків, ухвалених на підставі угоди про визнання винуватості та постановлених щодо них рішень суду апеляційної інстанції",null,null,33]
["Участь у перегляді судових рішень Верховним Судом України",null,null,null,34]
["з них:","на підставі п.1 ч.1 ст.445 КПК України",null,null,35]
[null,"на підставі п.2 ч.1 ст.445 КПК України",null,null,36]
["Участь у перегляді судових рішень за нововиявленими обставинами",null,null,null,37,3]
["з них (з рядка 37):","судами першої інстанції",null,null,38,3]
[null,"з них:","із скасуванням вироку ",null,39]
[null,null,"у т.ч. ","за заявами прокурора ",40]
[null,"апеляційними судами",null,null,41]
[null,"з них:","із скасуванням вироку",null,42]
[null,null,"у т.ч.:","за заявами прокурора",43]
[null,"Вищим спеціалізованим судом України з розгляду цивільних і кримінальних справ",null,null,44]
[null,"з них:","із скасуванням вироку",null,45]
[null,null,"у т.ч.:","за заявами прокурора",46]
["Контрольний рядок",null,null,null,47,{"$f":"SUM(F4:F49)","v":11450},{"$f":"SUM(G4:G49)","v":314}]

{"sheet":"9","index":5,"n_rows":30,"n_cols":12,"rows_kept":30,"cut":false,"hidden":false,"merged":[[5,1,5,4],[24,1,27,1],[15,2,18,2],[9,3,9,4],[11,3,11,4],[17,3,17,4],[8,3,8,4],[15,3,15,4],[20,3,20,4],[6,1,18,1],[19,1,19,4],[24,2,24,4],[23,1,23,4],[20,1,22,1],[21,2,21,4],[8,2,9,2],[1,6,1,7],[1,8,1,9],[25,2,25,4],[1,10,1,11],[13,2,13,4],[14,2,14,4],[7,2,7,4],[12,2,12,4],[6,2,6,4],[1,5,2,5],[4,0,4,4],[10,2,10,4],[1,0,1,4],[3,0,3,4],[2,0,2,4],[5,0,28,0],[22,2,22,4],[29,0,29,4],[28,1,28,4],[27,2,27,4],[26,2,26,4]]}
[]
["Таблиця 9",null,null,null,null,"рядок","Апеляційні скарги прокурора",null,"Касаційні скарги прокурора",null,"Заяви в порядку ст.445 КПК"]
["Розглянуті апеляційні, касаційні скарги та заяви прокурора (за кількістю осіб)",null,null,null,null,null,"задово-лено","відхи-лено","задово-лено","відхи-лено","задово-лено","відхи-лено"]
["а",null,null,null,null,"б",1,2,3,4,5,6]
["Усього",null,null,null,null,1,214,65]
["Підстави апеляційних, касаційних скарг та заяв прокурора (з рядка 1)","Про скасування вироку (усього)",null,null,null,2,113,39,null,null,"x","x"]
[null,"з них:","з призначенням нового судового розгляду",null,null,3,45,2,null,null,"x","x"]
[null,null,"з ухваленням нового вироку",null,null,4,56,35,"x","x","x","x"]
[null,null,"з ряд. \n3, 4","у зв’язку з виправданням особи ",null,5,15,13,null,null,"x","x"]
[null,null,null,"за м’якістю покарання",null,6,25,15,null,null,"x","x"]
[null,null,"із закриттям провадження",null,null,7,3,null,null,null,"x","x"]
[null,null,"у т.ч.","за реабілітуючими підставами",null,8,null,null,null,null,"x","x"]
[null,null,"у провадженнях щодо неповнолітніх",null,null,9,5,2,null,null,"x","x"]
[null,null,"у провадженнях про вчинення кримінал. правопорушень у складі ОГ і ЗО",null,null,10,1,2,null,null,"x","x"]
[null,null,"ухваленого на підставі угоди",null,null,11,1,1,null,null,"x","x"]
[null,null,"у т.ч. ","про примирення",null,12,1,null,null,null,"x","x"]
[null,null,null,"з них:","направлено для здійснення досудового розслідування ",13,null,null,"x","x","x","x"]
[null,null,null,"про визнання винуватості",null,14,null,1,null,null,"x","x"]
[null,null,null,"з них:","направлено для здійснення досудового розслідування ",15,null,null,"x","x","x","x"]
[null,"Про зміну вироку (усього)",null,null,null,16,53,6,null,null,"x","x"]
[null,"з них:","у т.ч.","з пом’якшенням покарання",null,17,2,null,null,null,"x","x"]
[null,null,"у провадженнях щодо неповнолітніх",null,null,18,8,null,null,null,"x","x"]
[null,null,"у провадженнях про вчинення кримінал. правопорушень у складі ОГ і ЗО",null,null,19,null,null,null,null,"x","x"]
[null,"Про скасування ухвал суду (усього)",null,null,null,20,47,20]
[null,"з них:","з постановленням нової ухвали",null,null,21,2,null,"x","x"]
[null,null,"з направленням провадження на новий розгляд до суду касаційної інстанції",null,null,22,"x","x","x","x"]
[null,null,"про повернення прокурору обвинувального акта, клопотання про застосування примусових заходів медичного або виховного характеру",null,null,23,31,14,"x","x","x","x"]
[null,null,"про закриття провадження за реабілітуючими підставами",null,null,24,null,null,null,null,"x","x"]
[null,"Про зміну ухвал суду (усього)",null,null,null,25,1]
["Контрольний рядок",null,null,null,null,26,{"$f":"SUM(G5:G29)","v":623},215,0,0,0,0]

{"sheet":"10-11","index":6,"n_rows":37,"n_cols":9,"rows_kept":37,"cut":false,"hidden":false,"merged":[[35,2,35,3],[36,0,36,3],[34,2,34,3],[28,0,35,1],[28,2,28,3],[29,2,33,2],[27,2,27,3],[25,0,25,3],[26,0,27,1],[26,2,26,3],[20,0,20,3],[23,4,24,4],[23,5,24,5],[23,6,23,8],[24,0,24,3],[15,1,15,3],[16,1,18,1],[16,2,16,3],[17,2,17,3],[18,2,18,3],[19,1,19,3],[3,0,3,3],[4,0,4,3],[5,0,19,0],[5,1,5,3],[6,1,8,1],[6,2,6,3],[7,2,7,3],[8,2,8,3],[9,1,9,3],[10,1,10,3],[11,2,11,3],[12,1,14,1],[12,2,12,3],[13,2,13,3],[14,2,14,3],[1,0,1,3],[1,4,2,4],[1,5,1,6],[1,7,1,8],[2,0,2,3]]}
[]
["Таблиця 10",null,null,null,"рядок","У порядку глави 31 КПК",null,"У порядку глави 32 КПК"]
["Перегляд судових рішень (за кількістю осіб) з ініціативи - ",null,null,null,null,"прокурора","інших учасників","прокурора","інших учасників"]
["a",null,null,null,"б",1,2,3,4]
["Усього",null,null,null,1,214,61]
[" Підстави апеляційних, касаційних скарг та результати розгляду (з рядка 1)","Про скасування вироку",null,null,2,113,23]
[null,"з них:","із закриттям провадження ",null,3,4,8]
[null,null,"з призначенням нового розгляду",null,4,45,15]
[null,null,"ухвалено новий вирок при скасуванні",null,5,56,null,"x","x"]
[null,"З рядків 4, 5 за м’якістю",null,null,6,25,1]
[null,"Про зміну вироку",null,null,7,53,37]
[null,"у т.ч.","з пом’якшенням покарання",null,8,null,36]
[null,"з рядків 2, 7","скасовано чи змінено за обставинами, які виникли після постановлення вироку",null,9,1,3]
[null,null,"у провадженнях щодо \nнеповнолітніх",null,10,13,5]
[null,null,"у провадженнях про вчинення кримінальних правопорушень у складі ОГ і ЗО",null,11,1,1]
[null,"Про скасування ухвали",null,null,12,47,1]
[null,"з них:","скасовано ухвал з поверненням обвинувального акта, клопотання про застосування примусових заходів медичного або виховного характеру ",null,13,31,null,"x","x"]
[null,null,"із закриттям провадження за реабілітуючими підставами",null,14]
[null,null,"з постановленням нової ухвали",null,15,2,null,"x","x"]
[null,"Про зміну ухвали",null,null,16,1]
["Контрольний рядок",null,null,null,17,{"$f":"SUM(F5:F20)","v":606},{"$f":"SUM(G5:G20)","v":191},{"$f":"SUM(H5:H20)","v":0},{"$f":"SUM(I5:I20)","v":0}]
[]
["РОЗДІЛ 4. Міжнародно-правове співробітництво у кримінальному провадженні"]
["Таблиця 11",null,null,null,"рядок","УСЬОГО","Види правової допомоги"]
["Робота за зверненнями про правову допомогу",null,null,null,null,null,"виконання процесуальних дій","перейняття кримінального провадження","екстрадиція"]
["а",null,null,null,"б",1,2,3,4]
["Звернення іноземних установ",null,"Надійшло звернень у звітному періоді",null,1,1,1]
[null,null,"Виконано звернень",null,2,1,1]
["Звернення установ України",null,"Підготовлено звернень у звітному періоді",null,3,9,6,3]
[null,null,"з них (з рядка 3):","органами прокуратури",4]
[null,null,null,"органами внутрішніх справ",5,5,3,2]
[null,null,null,"органами служби безпеки",6,4,3,1]
[null,null,null,"органами фіскальної служби",7]
[null,null,null,"судовими органами",8]
[null,null,"Надіслано звернень для виконання",null,9,9,6,3]
[null,null,"Виконано звернень",null,10,8,7,1]
["Контрольний рядок",null,null,null,11,{"$f":"SUM(F27:F36)","v":37},{"$f":"SUM(G27:G36)","v":27},{"$f":"SUM(H27:H36)","v":10},{"$f":"SUM(I27:I36)","v":0}]

{"sheet":"12-14","index":7,"n_rows":40,"n_cols":6,"rows_kept":40,"cut":false,"hidden":false,"merged":[[28,0,28,1],[30,0,30,1],[32,0,32,1],[29,0,29,1],[22,0,22,1],[23,0,23,1],[25,0,25,1],[27,0,27,1],[26,0,26,1],[24,0,24,1],[8,0,8,1],[18,0,18,1],[19,0,19,1],[20,0,20,1],[21,0,21,1],[13,0,13,1],[14,0,14,1],[16,0,16,1],[39,0,39,1],[35,0,35,1],[34,0,34,1],[36,0,38,0],[0,0,0,5],[1,0,1,1],[2,0,2,1],[3,0,3,1],[4,0,4,1],[9,0,9,1],[10,0,10,1],[11,0,11,1],[12,0,12,1],[5,0,5,1],[6,0,6,1],[7,0,7,1]]}
["РОЗДІЛ 5. Нагляд за додержанням законів при виконанні судових рішень у кримінальних провадженнях, а також при застосуванні інших заходів примусового характеру, пов'язаних з обмеженням особистої свободи громадян"]
["Таблиця 12\n\nНагляд за додержанням законів при виконанні судових рішень у кримінальних провадженнях",null,"рядок","Звільнено за ініціативою прокурора незаконно утримуваних осіб","Розглянуто документів прокурора з вжиттям заходів щодо усунення порушень закону","Притягнуто до дисциплінарної, адміністративної відповідальності працівників"]
["а",null,"б",1,2,3]
["Усього:",null,1,1,175,145]
["Слідчі ізолятори",null,2,1,12,9]
["Арештні доми",null,3]
["Виправні центри",null,4,null,16,6]
["Виправні колонії",null,5,null,44,27]
["Виховні колонії",null,6,null,9,9]
["Кримінально-виконавчі інспекції",null,7,null,28,21]
["Органи виконавчої влади, місцевого самоврядування, підприємства, установи, організації",null,8,"x",54,71]
["Підрозділи державної виконавчої служби",null,9,"x",9]
["Відділення психіатричних лікарень та стаціонарної судово-психіатрічної експертизи",null,10,null,2,2]
["Дисциплінарний батальйон",null,11]
["Військові частини",null,12]
["з рядка 1","у т.ч. щодо неповнолітніх",13,null,39,32]
["Контрольний рядок",null,14,{"$f":"SUM(D4:D16)","v":2},{"$f":"SUM(E4:E16)","v":388},{"$f":"SUM(F4:F16)","v":322}]
[]
["Таблиця 13\n\nНагляд за додержанням законів при застосуванні інших заходів примусового характеру, пов’язаних з обмеженням особистої свободи громадян ",null,"рядок","Звільнено за ініціативою прокурора незаконно утримуваних осіб","Розглянуто документів прокурора з вжиттям заходів щодо усунення порушень закону","Притягнуто до дисциплінарної, адміністративної відповідальності працівників"]
["а",null,"б",1,2,3]
["Усього:",null,1,null,151,83]
["Пункти тимчасового тримання прикордонної служби та спецприміщення прикордонних загонів ",null,2,null,7,13]
["Ізолятори тимчасового тримання органів внутрішніх справ",null,3,null,91,43]
["Місця тимчасового тримання органів СБУ",null,4]
["Кімнати для затриманих та доставлених чергових частин органів внутрішніх справ",null,5,null,4,4]
["Спец. приймальники для тримання осіб, підданих адміністративному арешту",null,6,null,2,2]
["Спеціальні палати протитуберкульозних та територіальних медичних закладів",null,7,null,28,1]
["Психіатричні заклади",null,8]
["Приймальники-розподільники для дітей",null,9]
["Школи та училища соціальної реабілітації",null,10]
["Гауптвахти",null,11]
["з рядка 1","у т.ч. щодо неповнолітніх",12,null,13,3]
["Контрольний рядок",null,13,{"$f":"SUM(D21:D32)","v":0},{"$f":"SUM(E21:E32)","v":296},{"$f":"SUM(F21:F32)","v":149}]
[]
["Таблиця 14",null,"рядок","усього","у т.ч. непов-нолітніх"]
["а",null,"б",1,2]
["Звільнено незаконно утримуваних осіб з:","карцерів",1]
[null,"дисциплінарних ізоляторів",2]
[null,"приміщень камерного типу (одиночних камер)",3,null,"x"]
["Контрольний рядок",null,4,{"$f":"SUM(D37:D39)","v":0},{"$f":"SUM(E37:E38)","v":0}]

{"sheet":"15-16","index":8,"n_rows":35,"n_cols":15,"rows_kept":35,"cut":false,"hidden":false,"merged":[[17,6,17,8],[17,3,18,3],[17,4,18,4],[13,6,13,8],[20,4,21,4],[20,3,21,3],[14,6,16,7],[20,6,21,6],[21,7,21,8],[18,6,18,8],[20,7,20,8],[19,6,19,8],[26,6,26,8],[24,6,24,8],[22,6,22,8],[22,4,23,4],[22,3,23,3],[25,7,25,8],[23,6,23,8],[4,6,4,8],[8,4,10,4],[7,7,7,8],[1,3,2,3],[11,3,12,3],[11,4,12,4],[6,4,7,4],[6,3,7,3],[5,6,5,8],[8,6,12,6],[6,6,7,6],[6,7,6,8],[8,7,12,7],[1,14,2,14],[1,13,2,13],[1,11,2,11],[1,9,2,9],[1,10,2,10],[1,0,1,2],[1,12,2,12],[3,6,3,8],[1,4,2,4],[1,6,1,8],[2,6,2,8],[4,0,4,2],[11,0,12,2],[5,0,5,2],[3,0,3,2],[2,0,2,2],[8,0,10,2],[6,0,7,2],[16,0,16,2],[22,1,23,2],[17,0,18,2],[22,0,23,0],[19,1,19,2],[20,0,21,2],[24,0,24,2],[26,1,26,2],[28,1,28,2],[26,0,27,0],[28,0,29,0],[25,0,25,2],[30,0,30,2],[34,0,34,2],[33,0,33,2],[31,0,32,0],[31,1,31,2],[13,1,13,2],[14,4,15,4],[14,3,15,3],[14,0,15,2],[8,3,10,3]]}
["РОЗДІЛ 6. Розгляд звернень"]
["Таблиця 15",null,null,"рядок","УСЬОГО",null,"Таблиця 16",null,null,"рядок","Вирішено звернень \n(без дублікатів)","у т.ч., що надійшли від народних депутатів України","Задоволено (з вирішених без дублікатів)","у т.ч., що надійшли від народних депутатів України","Вирішено звернень понад установлений термін"]
["Розгляд і вирішення звернень (без дублікатів)",null,null,null,null,null,"Категорії вирішених та задоволених звернень"]
["а",null,null,"б",1,null,"а",null,null,"б",1,2,3,4,5]
["Вирішено звернень",null,null,1,5841,null,"Усього",null,null,1,5841,203,225,1,4]
["Задоволено (з вирішених)",null,null,2,225,null,"З питань досудового розслідування",null,null,2,3063,131,33,null,1]
["Задоволено повторних звернень на раніше прийняті рішення тієї ж прокуратури (з рядка 2) ",null,null,3,null,null,"з них\nз питань:","щодо поновлення конституційних прав громадян в межах КПК",null,3,11,1]
[null,null,null,null,null,null,null,"від учасників кримінального провадження",null,4,317,null,11,null,1]
["Задоволено з тих, що раніше відхилялись підпорядкованими прокурорами",null,null,4,1,null,"у т.ч.:","на дії і рішення","слідчих прокуратури",5,173,8,1]
[null,null,null,null,null,null,null,null,"слідчих МВС",6,1366,93,26,null,1]
[null,null,null,null,null,null,null,null,"з них слідчих відділів \"ОЗ\"",7,5,null,1]
["Направлено звернень до інших відомств для вирішення",null,null,5,3379,null,null,null,"слідчих ДФС",8,46,1]
[null,null,null,null,null,null,null,null,"процесуальних керівників",9,1]
["у т.ч.:","що надійшли від народних депутатів України",null,6,29,null,"З питань додержання законів про національну безпеку",null,null,10,1,1]
["Повернуто заявникам або залишено без розгляду",null,null,7,105,null,"у т.ч. \nна дії і рішення:",null,"органів служби безпеки",11]
[null,null,null,null,null,null,null,null,"митних органів",12,1,1]
["УСЬОГО (рядки 1+5+7)",null,null,8,9325,null,null,null,"прикордонних військ",13]
["Направлено звернень підпорядкованим (іншим) прокурорам",null,null,9,1579,null,"З питань надання правової допомоги",null,null,14,4,null,1]
[null,null,null,null,null,null,"З питань участі у кримінальному провадженні в суді",null,null,15,57,1]
["у т.ч.:","що надійшли від народних депутатів України",null,10,null,null,"З питань представництва інтересів громадян та держави в суді",null,null,16,443,23,115,null,1]
["Розглянуто (вирішено) звернень з порушенням встановленого порядку (з рядків 1, 5, 9)",null,null,11,5,null,"у т.ч. \nз питань:","законності судових рішень",null,17,31,1,1]
[null,null,null,null,null,null,null,"неправомірності дій службових та інших осіб при здійсненні судочинства",null,18,4,null,1]
["у т.ч.:","що надійшли від народних депутатів України",null,12,null,null,"Про права дітей",null,null,19,8,null,2]
[null,null,null,null,null,null,"З питань додержання законодавства при виконанні рішень судів та інших органів",null,null,20,47,4]
["Залишок звернень на кінець звітного періоду",null,null,13,272,null,"З питань нагляду за додержанням кримінально-виконавчого законодавства",null,null,21,397,4,43]
["Прийнято громадян на особистому прийомі",null,null,14,3210,null,"у т.ч.:","на недозволені заходи впливу адміністрації місць застосування заходів примусового характеру",null,22,14,null,4]
["з рядка 14","керівником прокуратури",null,15,1129,null,"Контрольний рядок",null,null,23,{"$f":"SUM(K5:K26)","v":11830},{"$f":"SUM(L5:L26)","v":472},{"$f":"SUM(M5:M26)","v":464},{"$f":"SUM(N5:N26)","v":1},{"$f":"SUM(O5:O26)","v":8}]
[null,"з них:","в’язнів ",16,97]
["з рядка 15","особисто прокурором області",null,17,351]
[null,"з них:","в’язнів ",18,27]
["Задоволено звернень з тих, що прийняті особисто керівником прокуратури",null,null,19,21]
["у т.ч.: ","в’язнів",null,20]
[null,"з них:","прийнятих прокурором області",21]
["Виключено з обліку звернень",null,null,22,414]
["Контрольний рядок",null,null,23,{"$f":"SUM(E5:E34)","v":26010}]

{"sheet":"17-19","index":9,"n_rows":41,"n_cols":11,"rows_kept":41,"cut":false,"hidden":false,"merged":[[26,0,26,1],[1,0,1,6],[2,0,2,6],[3,0,3,6],[6,1,6,6],[5,1,5,6],[12,0,12,6],[7,1,7,6],[14,0,14,1],[14,5,14,6],[16,0,16,1],[17,0,17,1],[17,5,17,6],[15,5,15,6],[2,8,2,10],[1,8,1,10],[10,8,10,10],[9,8,9,10],[8,8,8,10],[6,8,6,10],[3,8,3,10],[12,8,12,10],[11,8,11,10],[4,8,4,10],[10,0,10,6],[8,1,8,6],[9,1,9,6],[5,0,9,0],[7,8,7,10],[11,1,11,6],[5,8,5,10],[4,0,4,6],[35,1,35,2],[18,0,19,0],[15,0,15,1],[16,5,16,6],[19,5,19,6],[22,0,22,1],[20,0,20,1],[18,5,18,6],[22,5,22,6],[21,5,21,6],[21,0,21,1],[33,6,33,10],[32,6,32,10],[33,0,33,2],[24,0,24,1],[23,5,23,6]]}
["РОЗДІЛ 7. Висвітлення діяльності органів прокуратури"]
["Таблиця 17",null,null,null,null,null,null,"рядок","УСЬОГО"]
["а",null,null,null,null,null,null,"б",1]
["Інформація в органи влади",null,null,null,null,null,null,1,120]
["Виступи в засобах масової інформації",null,null,null,null,null,null,2,2216]
["з них:","друковані ЗМІ",null,null,null,null,null,3,342]
[null,"електронні ЗМІ ",null,null,null,null,null,4,391]
[null,"інформаційні агентства",null,null,null,null,null,5,57]
[null,"інтернет",null,null,null,null,null,6,1426]
[null,"акредитовані в Україні зарубіжні ЗМІ",null,null,null,null,null,7]
["Підготовлено програм",null,null,null,null,null,null,8]
["з них:","протрансльовано в ефірі центральних телеканалів",null,null,null,null,null,9]
["Контрольний рядок",null,null,null,null,null,null,10,{"$f":"SUM(I4:I12)","v":4552}]
["РОЗДІЛ 8. Розгляд запитів на інформацію"]
["Таблиця 18",null,"рядок","УСЬОГО",null,"Таблиця 19",null,"рядок","Надано інформацію на запити","Відмовлено у задоволенні запиту","Надано роз'яснення"]
["а",null,"б",1,null,"а",null,"б",1,2,3]
["Розглянуто запитів (сума рядків 2+5+6)",null,1,92,null,"З питань досудового розслідування",null,1,30,null,3]
["Надано інформацію на запит",null,2,74,null,"З питань підтримання державного обвинувачення в суді",null,2]
["з них \n(з рядка 2):","протягом 48 годин",3,1,null,"З питань представництва інтересів громадян та держави в суді",null,3,1,null,1]
[null,"з продовженням строку розгляду запиту",4,1,null,"З питань організаційно-розпорядчої діяльності",null,4,8]
["Відмовлено у задоволенні запиту",null,5,null,null,"у т.ч.:","про надання статистичної інформації",5,6]
["Надано роз'яснення",null,6,18,null,"З кадрових питань",null,6,16]
["Надіслано іншим розпорядникам",null,7,7,null,"З інших питань",null,7,19,null,14]
["у т.ч.:","підпорядкованим прокурорам",8,5,null,"Контрольний рядок",null,8,{"$f":"SUM(I17:I23)","v":80},{"$f":"SUM(J17:J23)","v":0},{"$f":"SUM(K17:K23)","v":18}]
["Залишок запитів",null,9,2]
["у т.ч.:","прийнято рішення про відстрочку в задоволенні запиту",10]
["Контрольний рядок",null,11,{"$f":"SUM(D17:D26)","v":200}]
[]
[]
[]
["Прокурор  області"]
[]
[null,null,null,null,null,null,"В. О. Носенко"]
["(підпис)",null,null,null,null,null,"(П.І.Б.)"]
["Виконавець                                    ."]
[null,"(П.І.Б.)"]
["Телефон:                                 факс:                                         електронна пошта:                                          ."]
[]
["Звіт складено в       примірнику"]
["Прим.№1 -"]
["Прим.№2 -"]

{"sheet":"dod 1-2","index":10,"n_rows":31,"n_cols":13,"rows_kept":31,"cut":false,"hidden":false,"merged":[[1,12,2,12],[1,11,2,11],[1,8,1,10],[5,0,7,0],[1,6,2,6],[1,7,2,7],[1,3,2,3],[1,4,2,4],[1,0,1,2],[1,5,2,5],[4,0,4,2],[2,0,2,2],[3,0,3,2],[23,0,25,0],[13,1,13,9],[12,0,12,9],[11,0,11,9],[10,0,10,9],[17,1,17,9],[16,1,16,9],[15,1,15,9],[14,1,14,9],[24,1,24,9],[23,1,23,9],[22,0,22,9],[21,1,21,9],[8,0,8,2],[7,1,7,2],[6,1,6,2],[5,1,5,2],[30,0,30,9],[29,0,29,9],[28,1,28,9],[27,1,27,9],[14,0,17,0],[27,0,28,0],[26,0,26,9],[20,1,20,9],[19,0,19,9],[20,0,21,0],[18,0,18,9],[25,1,25,9]]}
[null,null,null,null,null,null,null,null,null,null,null,null,"Додаток (продовження)"]
["Таблиця 1",null,null,"рядок","Відкрито проваджень за позовами","Розглянуто позовів","Задоволено позовів","Сума, на яку задоволено позови (тис. грн.)","Участь у розгляді справ у судах",null,null,"Подано скарг, заяв","Задоволено скарг, заяв"]
["Позови до органів прокуратури та її посадових осіб, участь у розгляді таких справ у судах",null,null,null,null,null,null,null,"Першої інстанції","Апеляційної інстанції","Касаційної інстанції"]
["а",null,null,"б",1,2,3,4,5,6,7,8,9]
["УСЬОГО",null,null,1,11,13,4,303,12,5,null,5,5]
["у т.ч. (з рядка 1):","про відшкодування шкоди, заподіяної органами прокуратури (ст.1176 ЦК України)",null,2,5,4,4,303,4,4,null,4,3]
[null,"на дії чи бездіяльність органів прокуратури",null,3,1,1,null,null,1]
[null,"з трудових спорів",null,4,4,6,null,null,6,null,null,1,2]
["Контрольний рядок",null,null,5,{"$f":"SUM(E5:E8)","v":21},24,8,606,23,9,0,10,10]
[null,null,null,null,null,null,null,null,null,null,null,null,"Додаток (продовження)"]
["Таблиця 2\nУчасть прокурорів у розгляді справ судом ",null,null,null,null,null,null,null,null,null,"рядок","Усього справ","щодо непов-нолітніх\n(з графи 1)"]
["а",null,null,null,null,null,null,null,null,null,"б",1,2]
["Участь у розгляді справ судами 1-ої інстанції (всього)",null,null,null,null,null,null,null,null,null,1,4]
["у т.ч.","у судовому розгляді справ з постановленням вироку",null,null,null,null,null,null,null,null,2,3]
["З рядка 2","Про скоєння злочинів ОГ і ЗО",null,null,null,null,null,null,null,null,3,2]
[null,"Зі зміною обвинувачення прокурором у суді",null,null,null,null,null,null,null,null,4]
[null,"Згідно з пропозицією потерпілого, який не погодився зі зміною обвинувачення прокурором",null,null,null,null,null,null,null,null,5]
[null,"З постановленням виправдувального вироку (в особах)",null,null,null,null,null,null,null,null,6]
["Участь у розгляді справ, закритих за реабілітуючими підставами постановлених судами всіх інстанцій",null,null,null,null,null,null,null,null,null,7]
["Участь у розгляді справ апеляційною інстанцією",null,null,null,null,null,null,null,null,null,8,5]
[" у т.ч.","у судовому розгляді справ з прийняттям рішення",null,null,null,null,null,null,null,null,9,4]
[null,"з постановленням вироку",null,null,null,null,null,null,null,null,10,1]
["Участь у розгляді справ касаційною інстанцією",null,null,null,null,null,null,null,null,null,11]
[" у т.ч.","щодо постановлених в апеляційному порядку вироків і постанов",null,null,null,null,null,null,null,null,12]
[null,"щодо рішень, передбачених ч.2 ст.383 КПК України (1961 року)",null,null,null,null,null,null,null,null,13]
[null,"за нововиявленими обставинами",null,null,null,null,null,null,null,null,14]
["Участь у перегляді судових рішень Верховним Судом України",null,null,null,null,null,null,null,null,null,15]
[" у т.ч.","на підставі п.1 ч.1 ст.40012 КПК України (1961 року)",null,null,null,null,null,null,null,null,16]
[null,"на підставі п.2 ч.1 ст.40012 КПК України (1961 року)",null,null,null,null,null,null,null,null,17]
["Участь у розгляді судом питань, пов’язаних з виконанням вироків",null,null,null,null,null,null,null,null,null,18]
["Контрольний рядок",null,null,null,null,null,null,null,null,null,19,{"$f":"SUM(L13:L30)","v":19},{"$f":"SUM(M13:M30)","v":0}]

{"sheet":"dod 3-4","index":11,"n_rows":41,"n_cols":13,"rows_kept":41,"cut":false,"hidden":false,"merged":[[39,8,39,11],[21,0,21,3],[20,0,20,12],[19,0,19,3],[40,8,40,11],[40,0,40,4],[30,0,30,3],[26,0,26,3],[29,0,29,1],[27,0,27,3],[28,0,28,3],[33,1,33,3],[32,0,33,0],[34,0,34,3],[31,0,31,3],[32,1,32,3],[0,10,0,12],[1,7,1,10],[1,11,2,12],[1,5,2,6],[2,7,2,8],[2,9,2,10],[1,4,3,4],[5,0,5,3],[7,1,11,1],[10,2,10,3],[1,0,1,3],[4,0,4,3],[2,0,3,3],[6,0,18,0],[6,1,6,3],[7,2,7,3],[8,2,8,3],[11,2,11,3],[12,1,12,3],[21,7,21,10],[22,7,22,8],[21,4,23,4],[23,0,23,3],[22,9,22,10],[21,5,22,6],[29,2,29,3],[25,0,25,3],[24,0,24,3],[14,2,14,3],[18,1,18,3],[13,1,15,1],[22,0,22,3],[17,2,17,3],[16,1,16,3],[15,2,15,3],[13,2,13,3]]}
[null,null,null,null,null,null,null,null,null,null,"Додаток (продовження)"]
["Таблиця 3",null,null,null,"рядок","Апеляції прокурора",null,"Касаційні подання на рішення",null,null,null,"Заяви в порядку ст.4005 КПК \n(1961 року)"]
["Розглянуті апеляції, касаційні скарги та заяви прокурора\n(за кількістю осіб)",null,null,null,null,null,null,"постановлені в апеляційному порядку",null,"передбачені ч.2 ст.383 КПК (1961 року)"]
[null,null,null,null,null,"задово- лено","відхи- лено","задово- лено","відхи- лено","задово- лено","відхи- лено","задово- лено","відхи- лено"]
["а",null,null,null,"б",1,2,3,4,5,6,7,8]
["Усього",null,null,null,1,1,4]
["Мотиви подань та клопотань (з рядка 1)","Про скасування вироку (усього)",null,null,2,1,3]
[null,"З рядка 2","З постановленням нового вироку",null,3,1,null,"x","x","x","x","x","x"]
[null,null,"Із закриттям справи",null,4]
[null,null,"у т.ч.","з реабілітуючих підстав",5]
[null,null,"У справах щодо неповнолітніх",null,6]
[null,null,"У справах про скоєння злочинів ОГ і ЗО",null,7]
[null,"Про зміну вироку (усього)",null,null,8]
[null,"з рядка 8","З пом'якшенням покарання",null,9]
[null,null,"У справах щодо неповнолітніх",null,10]
[null,null,"У справах про скоєння злочинів ОГ і ЗО",null,11]
[null,"Про скасування ухвал чи постанов суду (усього)",null,null,12,null,1]
[null,"у т.ч.","про закриття справи з реабілітуючих підстав",null,13]
[null,"Про зміну ухвал чи постанов суду (усього)",null,null,14]
["Контрольний рядок",null,null,null,15,{"$f":"SUM(F6:F19)","v":3},{"$f":"SUM(G6:G19)","v":8},{"$f":"SUM(H6:H19)","v":0},0,0,0,0,0]
[]
["Таблиця 4",null,null,null,"рядок","У порядку глав \n29-30 КПК \n(1961 року)",null,"У порядку глави 31 КПК (1961 року)  \nна вироки"]
["Перегляд вироків (за кількістю осіб)",null,null,null,null,null,null,"апеляційних судів",null,"місцевих судів"]
["з ініціативи -",null,null,null,null,"прокурора","інших учасників","прокурора","інших учасників","прокурора","інших учасників"]
["а",null,null,null,"б",1,2,3,4,5,6]
["Скасовано із закриттям справи чи поверненням на новий судовий розгляд та додаткове розслідування",null,null,null,1]
["Постановлено новий вирок при скасуванні",null,null,null,2,1,null,"x","x","x","x"]
["З ряд.1, 2 за м'якістю",null,null,null,3]
["Змінено",null,null,null,4]
["у т.ч.",null,"за суворістю",null,5]
["З рядків 1, 4 скасовано чи змінено за обставинами, які виникли після постановлення вироку",null,null,null,6,"x",null,"x",null,"x"]
["Усього",null,null,null,7,1]
["З ряд. 7","У справах про злочини неповнолітніх",null,null,8]
[null,"У справах про злочини ОГ і ЗО",null,null,9]
["Контрольний рядок",null,null,null,10,{"$f":"SUM(F26:F34)","v":2},{"$f":"SUM(G26:G34)","v":0},{"$f":"SUM(H26,H28:H34)","v":0},{"$f":"SUM(I26,I28:I34)","v":0},{"$f":"SUM(J26,J28:J34)","v":0},{"$f":"SUM(K26,K28:K34)","v":0}]
[]
[{"$f":"'17-19'!A30","v":0}]
[{"$f":"'17-19'!A31","v":"Прокурор  області"}]
[{"$f":"'17-19'!A32","v":0}]
[null,null,null,null,null,null,null,null,{"$f":"'17-19'!G33","v":"В. О. Носенко"}]
["(підпис)",null,null,null,null,null,null,null,"(П.І.Б.)"]